[Event "Late-Titled-Tuesday-Blitz-June-18-2024"]
[Site "Chess.com"]
[Date "2024.06.18"]
[Round "1"]
[White "olakenn"]
[Black "Omranalhosani21"]
[Result "0-1"]
[WhiteElo "1864"]
[BlackElo "2539"]
[TimeControl "180+1"]
[EndTime "14:08:23 PDT"]
[Termination "Omranalhosani21 won on time"]

1. e4 {[%clk 0:02:59.9]} 1... c6 {[%clk 0:02:58.2]} 2. d4 {[%clk 0:02:59.9]}
2... d5 {[%clk 0:02:58.5]} 3. Nc3 {[%clk 0:02:59.6]} 3... dxe4 {[%clk
0:02:58.8]} 4. Nxe4 {[%clk 0:02:59.9]} 4... Nf6 {[%clk 0:02:59.7]} 5. Nxf6+
{[%clk 0:02:59.8]} 5... exf6 {[%clk 0:03:00.6]} 6. Nf3 {[%clk 0:03:00.1]} 6...
Bd6 {[%clk 0:03:00.5]} 7. Bd3 {[%clk 0:02:58.7]} 7... O-O {[%clk 0:03:00.7]} 8.
c3 {[%clk 0:02:58.8]} 8... Re8+ {[%clk 0:03:00.8]} 9. Be3 {[%clk 0:02:57.2]}
9... Nd7 {[%clk 0:03:00.8]} 10. O-O {[%clk 0:02:57.2]} 10... Nf8 {[%clk
0:03:00.5]} 11. Re1 {[%clk 0:02:54.7]} 11... Bg4 {[%clk 0:03:00.3]} 12. Be2
{[%clk 0:02:53.1]} 12... Bh5 {[%clk 0:02:58.1]} 13. h3 {[%clk 0:02:51.5]} 13...
Bc7 {[%clk 0:02:51.1]} 14. Qd2 {[%clk 0:02:34.5]} 14... Qd6 {[%clk 0:02:49.5]}
15. g3 {[%clk 0:02:25.8]} 15... Rad8 {[%clk 0:02:42.2]} 16. c4 {[%clk
0:02:24.2]} 16... Ne6 {[%clk 0:02:38.4]} 17. c5 {[%clk 0:02:19.2]} 17... Qd5
{[%clk 0:02:36.3]} 18. Nh4 {[%clk 0:02:05.8]} 18... Bxe2 {[%clk 0:02:28]} 19.
Qxe2 {[%clk 0:02:04]} 19... Nxd4 {[%clk 0:02:26.8]} 20. Qg4 {[%clk 0:01:40.2]}
20... h5 {[%clk 0:02:18.3]} 21. Qxd4 {[%clk 0:01:28.2]} 21... Qxd4 {[%clk
0:02:16.3]} 22. Bxd4 {[%clk 0:01:28.2]} 22... Rxe1+ {[%clk 0:02:17.2]} 23. Rxe1
{[%clk 0:01:25.4]} 23... Rxd4 {[%clk 0:02:18.1]} 24. Re8+ {[%clk 0:01:17.1]}
24... Kh7 {[%clk 0:02:16.6]} 25. Re7 {[%clk 0:01:17]} 25... Be5 {[%clk
0:02:16.6]} 26. Rxb7 {[%clk 0:01:10.2]} 26... Rd1+ {[%clk 0:02:16.3]} 27. Kg2
{[%clk 0:01:09.6]} 27... Rc1 {[%clk 0:02:14.3]} 28. b4 {[%clk 0:01:05.5]} 28...
Rc2 {[%clk 0:01:58.6]} 29. Nf3 {[%clk 0:00:55.7]} 29... Bc3 {[%clk 0:01:51.4]}
30. a3 {[%clk 0:00:49.2]} 30... a5 {[%clk 0:01:44.7]} 31. b5 {[%clk 0:00:45.8]}
31... cxb5 {[%clk 0:01:40.7]} 32. Rxb5 {[%clk 0:00:45.7]} 32... a4 {[%clk
0:01:31]} 33. c6 {[%clk 0:00:32.1]} 33... Ba1 {[%clk 0:00:40.7]} 34. Rb4 {[%clk
0:00:22.5]} 34... Rxc6 {[%clk 0:00:25.4]} 35. Rxa4 {[%clk 0:00:21.9]} 35... f5
{[%clk 0:00:22.5]} 36. h4 {[%clk 0:00:19.8]} 36... Bf6 {[%clk 0:00:20.2]} 37.
Ra7 {[%clk 0:00:16.2]} 37... Kg8 {[%clk 0:00:19.1]} 38. a4 {[%clk 0:00:13.6]}
38... Rc2 {[%clk 0:00:19]} 39. Ra8+ {[%clk 0:00:13.5]} 39... Kh7 {[%clk
0:00:18.3]} 40. Ng5+ {[%clk 0:00:10.2]} 40... Bxg5 {[%clk 0:00:18.1]} 41. hxg5
{[%clk 0:00:10.6]} 41... Kg6 {[%clk 0:00:16.5]} 42. Ra7 {[%clk 0:00:07.5]} 42...
Kxg5 {[%clk 0:00:15.7]} 43. Rxf7 {[%clk 0:00:06.8]} 43... g6 {[%clk 0:00:16.2]}
44. Ra7 {[%clk 0:00:06.4]} 44... Ra2 {[%clk 0:00:15.7]} 45. a5 {[%clk
0:00:06.5]} 45... h4 {[%clk 0:00:15.8]} 46. gxh4+ {[%clk 0:00:05.5]} 46... Kxh4
{[%clk 0:00:16]} 47. Ra8 {[%clk 0:00:04.9]} 47... Kg4 {[%clk 0:00:14.8]} 48. a6
{[%clk 0:00:04.8]} 48... g5 {[%clk 0:00:15.4]} 49. a7 {[%clk 0:00:04.9]} 49...
f4 {[%clk 0:00:15.5]} 50. Kf1 {[%clk 0:00:03.5]} 50... Kf3 {[%clk 0:00:15.4]}
51. Ke1 {[%clk 0:00:03.5]} 51... Ra1+ {[%clk 0:00:14.4]} 52. Kd2 {[%clk
0:00:03.4]} 52... Kxf2 {[%clk 0:00:14.5]} 53. Kc3 {[%clk 0:00:03.6]} 53... g4
{[%clk 0:00:14.3]} 54. Rf8 {[%clk 0:00:03.2]} 54... f3 {[%clk 0:00:13.5]} 55.
a8=Q {[%clk 0:00:02.6]} 55... Rxa8 {[%clk 0:00:13.5]} 56. Rxa8 {[%clk
0:00:02.3]} 56... Kg2 {[%clk 0:00:13.9]} 57. Kd3 {[%clk 0:00:01.6]} 57... f2
{[%clk 0:00:13.4]} 0-1

[Event "Late-Titled-Tuesday-Blitz-June-18-2024"]
[Site "Chess.com"]
[Date "2024.06.18"]
[Round "1"]
[White "sakkikuska"]
[Black "nihalsarin"]
[Result "0-1"]
[WhiteElo "2534"]
[BlackElo "3201"]
[TimeControl "180+1"]
[EndTime "14:08:33 PDT"]
[Termination "nihalsarin won by resignation"]

1. e4 {[%clk 0:02:59.9]} 1... c5 {[%clk 0:02:56.9]} 2. Nf3 {[%clk 0:03:00.5]}
2... e6 {[%clk 0:02:55.2]} 3. d4 {[%clk 0:03:00.5]} 3... cxd4 {[%clk 0:02:56.1]}
4. Nxd4 {[%clk 0:03:01.4]} 4... Nf6 {[%clk 0:02:55.7]} 5. Nc3 {[%clk 0:03:01.6]}
5... d6 {[%clk 0:02:53]} 6. g4 {[%clk 0:02:58.5]} 6... a6 {[%clk 0:02:50.2]} 7.
h3 {[%clk 0:02:54.6]} 7... b5 {[%clk 0:02:49.8]} 8. Bg2 {[%clk 0:02:50]} 8...
Bb7 {[%clk 0:02:49.3]} 9. Qe2 {[%clk 0:02:44.9]} 9... Be7 {[%clk 0:02:44.9]} 10.
O-O {[%clk 0:02:16.3]} 10... O-O {[%clk 0:02:35]} 11. a3 {[%clk 0:02:06.1]}
11... Nc6 {[%clk 0:02:26.6]} 12. Be3 {[%clk 0:01:53.2]} 12... Rc8 {[%clk
0:02:10.8]} 13. Nxc6 {[%clk 0:01:44.7]} 13... Bxc6 {[%clk 0:02:11.7]} 14. Rad1
{[%clk 0:01:44.1]} 14... Qc7 {[%clk 0:02:00.3]} 15. Bf4 {[%clk 0:01:38.7]} 15...
Rfd8 {[%clk 0:01:57.8]} 16. e5 {[%clk 0:01:27.3]} 16... Bxg2 {[%clk 0:01:56.8]}
17. Kxg2 {[%clk 0:01:28.2]} 17... Ne8 {[%clk 0:01:51.6]} 18. exd6 {[%clk
0:01:20.8]} 18... Bxd6 {[%clk 0:01:51.4]} 19. Bxd6 {[%clk 0:01:12.1]} 19... Nxd6
{[%clk 0:01:52.3]} 20. Rd3 {[%clk 0:00:51]} 20... Nc4 {[%clk 0:01:49.7]} 21. Nd1
{[%clk 0:00:30.7]} 21... Ne5 {[%clk 0:01:49.7]} 22. Rxd8+ {[%clk 0:00:29.8]}
22... Rxd8 {[%clk 0:01:50.6]} 23. Ne3 {[%clk 0:00:29.8]} 23... Ng6 {[%clk
0:01:50.9]} 24. Kg1 {[%clk 0:00:19]} 24... Nf4 {[%clk 0:01:43.3]} 25. Qf3 {[%clk
0:00:17.7]} 25... g5 {[%clk 0:01:43.9]} 26. Ng2 {[%clk 0:00:14]} 26... Nxg2
{[%clk 0:01:28.3]} 27. Kxg2 {[%clk 0:00:14]} 27... Qxc2 {[%clk 0:01:28.8]} 28.
Qf6 {[%clk 0:00:12.9]} 28... Rd5 {[%clk 0:01:28]} 29. Re1 {[%clk 0:00:10.8]}
29... Qg6 {[%clk 0:01:20.8]} 30. Qc3 {[%clk 0:00:11.1]} 30... h6 {[%clk
0:01:07.5]} 31. Qc8+ {[%clk 0:00:11.3]} 31... Kg7 {[%clk 0:01:05.4]} 32. Qxa6
{[%clk 0:00:10.6]} 32... Qf6 {[%clk 0:01:06.1]} 33. Qa7 {[%clk 0:00:09.9]} 33...
Rd3 {[%clk 0:01:00]} 34. Re3 {[%clk 0:00:08.8]} 34... Rxe3 {[%clk 0:00:59.8]}
35. Qxe3 {[%clk 0:00:09.6]} 35... Qxb2 {[%clk 0:01:00.7]} 36. Qd3 {[%clk
0:00:09.3]} 36... Qe5 {[%clk 0:00:59.9]} 37. Kf1 {[%clk 0:00:03.8]} 37... Qd5
{[%clk 0:00:46.7]} 38. Qc3+ {[%clk 0:00:04]} 38... e5 {[%clk 0:00:47.2]} 39. Ke2
{[%clk 0:00:03]} 39... Kg6 {[%clk 0:00:45.1]} 40. Qc2+ {[%clk 0:00:02.4]} 40...
Kg7 {[%clk 0:00:45.4]} 41. Qc3 {[%clk 0:00:02.4]} 41... Qe4+ {[%clk 0:00:45.5]}
42. Kf1 {[%clk 0:00:02.5]} 42... h5 {[%clk 0:00:38.8]} 43. gxh5 {[%clk
0:00:02.2]} 43... Kh6 {[%clk 0:00:38.6]} 44. Qd2 {[%clk 0:00:01.5]} 44... Kxh5
{[%clk 0:00:31.1]} 45. Qd8 {[%clk 0:00:01.6]} 45... Qc4+ {[%clk 0:00:20.8]} 46.
Kg2 {[%clk 0:00:01.9]} 46... Qc6+ {[%clk 0:00:21.3]} 47. Kg1 {[%clk 0:00:02]}
47... Qc4 {[%clk 0:00:14.9]} 48. Qh8+ {[%clk 0:00:02]} 48... Kg6 {[%clk
0:00:15.7]} 49. Qg8+ {[%clk 0:00:02.7]} 49... Kf6 {[%clk 0:00:16.3]} 50. Qd8+
{[%clk 0:00:03.4]} 50... Kf5 {[%clk 0:00:16.8]} 51. Qd7+ {[%clk 0:00:03.8]}
51... Kg6 {[%clk 0:00:17.3]} 52. Qg4 {[%clk 0:00:03.5]} 52... Qxg4+ {[%clk
0:00:17.3]} 53. hxg4 {[%clk 0:00:04.4]} 53... e4 {[%clk 0:00:18.2]} 54. Kf1
{[%clk 0:00:04.8]} 54... Kf6 {[%clk 0:00:18.7]} 55. Ke2 {[%clk 0:00:05.7]} 55...
Ke5 {[%clk 0:00:19.4]} 56. Ke3 {[%clk 0:00:06.4]} 56... f6 {[%clk 0:00:20.2]}
57. f3 {[%clk 0:00:06.9]} 57... exf3 {[%clk 0:00:20.4]} 58. Kxf3 {[%clk
0:00:07.8]} 58... Kd4 {[%clk 0:00:21.3]} 59. Kf2 {[%clk 0:00:08.2]} 59... Ke4
{[%clk 0:00:22.2]} 60. Ke2 {[%clk 0:00:08.8]} 60... Kf4 {[%clk 0:00:22.6]} 61.
Kf2 {[%clk 0:00:09.7]} 61... Kxg4 {[%clk 0:00:23.1]} 62. Kg2 {[%clk 0:00:10.5]}
62... Kf4 {[%clk 0:00:23.5]} 63. Kh3 {[%clk 0:00:11]} 63... Kf3 {[%clk
0:00:23.4]} 64. Kh2 {[%clk 0:00:11.5]} 64... g4 {[%clk 0:00:23.7]} 65. Kg1
{[%clk 0:00:12.1]} 65... g3 {[%clk 0:00:24.1]} 66. a4 {[%clk 0:00:12.9]} 66...
bxa4 {[%clk 0:00:24.1]} 0-1

[Event "Late-Titled-Tuesday-Blitz-June-18-2024"]
[Site "Chess.com"]
[Date "2024.06.18"]
[Round "1"]
[White "David_ATM"]
[Black "IMRosen"]
[Result "1/2-1/2"]
[WhiteElo "2441"]
[BlackElo "2761"]
[TimeControl "180+1"]
[EndTime "14:08:35 PDT"]
[Termination "Game drawn by repetition"]

1. e4 {[%clk 0:03:00.9]} 1... c5 {[%clk 0:02:58]} 2. c3 {[%clk 0:03:00.9]} 2...
d5 {[%clk 0:02:57.7]} 3. exd5 {[%clk 0:03:01.8]} 3... Qxd5 {[%clk 0:02:58.1]} 4.
d4 {[%clk 0:03:02.7]} 4... Nf6 {[%clk 0:02:58.5]} 5. Nf3 {[%clk 0:03:03.4]} 5...
e6 {[%clk 0:02:58.7]} 6. Be2 {[%clk 0:03:03.8]} 6... Nc6 {[%clk 0:02:57.8]} 7.
Na3 {[%clk 0:03:03.4]} 7... cxd4 {[%clk 0:02:44.1]} 8. Nb5 {[%clk 0:03:02.3]}
8... Qd8 {[%clk 0:02:43.9]} 9. Nbxd4 {[%clk 0:03:02]} 9... Nxd4 {[%clk
0:02:29.3]} 10. Qxd4 {[%clk 0:03:02.9]} 10... Qxd4 {[%clk 0:02:21.1]} 11. Nxd4
{[%clk 0:03:03.8]} 11... Bd7 {[%clk 0:02:21.5]} 12. O-O {[%clk 0:03:01.6]} 12...
O-O-O {[%clk 0:02:16.2]} 13. Bf4 {[%clk 0:02:56.5]} 13... Nd5 {[%clk 0:02:13.9]}
14. Bg3 {[%clk 0:02:54.3]} 14... f6 {[%clk 0:02:11.3]} 15. Nb5 {[%clk
0:02:47.3]} 15... Bxb5 {[%clk 0:02:06.2]} 16. Bxb5 {[%clk 0:02:48.2]} 16... e5
{[%clk 0:02:01.1]} 17. Rad1 {[%clk 0:02:41.5]} 17... Bc5 {[%clk 0:01:58.5]} 18.
Bc4 {[%clk 0:02:22.6]} 18... Nc7 {[%clk 0:01:46.8]} 19. b4 {[%clk 0:02:10.1]}
19... b5 {[%clk 0:01:24.5]} 20. Bd3 {[%clk 0:02:08.4]} 20... Bb6 {[%clk
0:01:23.5]} 21. Bf5+ {[%clk 0:02:08.1]} 21... Kb7 {[%clk 0:01:21]} 22. Be4+
{[%clk 0:01:45.9]} 22... Kc8 {[%clk 0:01:21.4]} 23. Rfe1 {[%clk 0:01:32.9]}
23... g6 {[%clk 0:01:11.2]} 24. h3 {[%clk 0:01:20.9]} 24... a6 {[%clk
0:01:03.2]} 25. Bh4 {[%clk 0:01:12.6]} 25... Rxd1 {[%clk 0:00:50.5]} 26. Rxd1
{[%clk 0:01:12.2]} 26... Rf8 {[%clk 0:00:51.1]} 27. Kf1 {[%clk 0:01:04.4]} 27...
g5 {[%clk 0:00:50.6]} 28. Bf5+ {[%clk 0:01:04.4]} 28... Kb7 {[%clk 0:00:50.5]}
29. Bg3 {[%clk 0:01:05]} 29... h5 {[%clk 0:00:40.8]} 30. h4 {[%clk 0:01:04.7]}
30... g4 {[%clk 0:00:41.1]} 31. f3 {[%clk 0:01:04.2]} 31... gxf3 {[%clk
0:00:32.9]} 32. gxf3 {[%clk 0:01:05.1]} 32... Rg8 {[%clk 0:00:32.9]} 33. Bf2
{[%clk 0:00:50]} 33... Bxf2 {[%clk 0:00:22.6]} 34. Kxf2 {[%clk 0:00:50.9]} 34...
Rf8 {[%clk 0:00:15.4]} 35. Rd6 {[%clk 0:00:45.8]} 35... Ne8 {[%clk 0:00:04.9]}
36. Be4+ {[%clk 0:00:43.8]} 36... Kc7 {[%clk 0:00:03.5]} 37. Rxa6 {[%clk
0:00:43.5]} 37... Nd6 {[%clk 0:00:04.1]} 38. Ra7+ {[%clk 0:00:33]} 38... Kb6
{[%clk 0:00:04.1]} 39. Rh7 {[%clk 0:00:33.2]} 39... f5 {[%clk 0:00:02.9]} 40.
Bd3 {[%clk 0:00:29.8]} 40... Ra8 {[%clk 0:00:01.7]} 41. Bb1 {[%clk 0:00:16.6]}
41... Ra3 {[%clk 0:00:02.3]} 42. Rh6 {[%clk 0:00:16.6]} 42... Kc7 {[%clk
0:00:02.5]} 43. Rxh5 {[%clk 0:00:14.2]} 43... e4 {[%clk 0:00:02.9]} 44. fxe4
{[%clk 0:00:13.5]} 44... fxe4 {[%clk 0:00:03.8]} 45. Rc5+ {[%clk 0:00:12.4]}
45... Kd7 {[%clk 0:00:02]} 46. h5 {[%clk 0:00:10.5]} 46... Ra8 {[%clk
0:00:01.3]} 47. h6 {[%clk 0:00:10.5]} 47... Rh8 {[%clk 0:00:01.1]} 48. Rh5
{[%clk 0:00:10.7]} 48... Ke6 {[%clk 0:00:01.7]} 49. Ke3 {[%clk 0:00:08.6]} 49...
Kf6 {[%clk 0:00:01.6]} 50. Kd4 {[%clk 0:00:06.6]} 50... Kg6 {[%clk 0:00:01.6]}
51. Rd5 {[%clk 0:00:04.6]} 51... Nf5+ {[%clk 0:00:01.7]} 52. Kc5 {[%clk
0:00:02.6]} 52... Ng3 {[%clk 0:00:01]} 53. Kxb5 {[%clk 0:00:02.2]} 53... Kxh6
{[%clk 0:00:01]} 54. Rd6+ {[%clk 0:00:02.5]} 54... Kg5 {[%clk 0:00:01.3]} 55.
Re6 {[%clk 0:00:03.1]} 55... Kf4 {[%clk 0:00:01.8]} 56. a4 {[%clk 0:00:03]}
56... e3 {[%clk 0:00:01.9]} 57. Bd3 {[%clk 0:00:03]} 57... Rd8 {[%clk
0:00:01.6]} 58. Bc4 {[%clk 0:00:02.9]} 58... Kf3 {[%clk 0:00:01.5]} 59. a5
{[%clk 0:00:02.8]} 59... e2 {[%clk 0:00:02]} 60. Bxe2+ {[%clk 0:00:02.3]} 60...
Nxe2 {[%clk 0:00:02.9]} 61. a6 {[%clk 0:00:02.3]} 61... Nxc3+ {[%clk 0:00:03.1]}
62. Kb6 {[%clk 0:00:02.5]} 62... Nd5+ {[%clk 0:00:03.4]} 63. Ka5 {[%clk
0:00:01.9]} 63... Kf4 {[%clk 0:00:01.1]} 64. b5 {[%clk 0:00:01.9]} 64... Kf5
{[%clk 0:00:01]} 65. Re1 {[%clk 0:00:02.2]} 65... Kf4 {[%clk 0:00:01.1]} 66. a7
{[%clk 0:00:02.4]} 66... Nc7 {[%clk 0:00:01.1]} 67. b6 {[%clk 0:00:02.2]} 67...
Rd5+ {[%clk 0:00:01.5]} 68. Ka4 {[%clk 0:00:02]} 68... Rd4+ {[%clk 0:00:01.8]}
69. Ka5 {[%clk 0:00:01.5]} 69... Rd5+ {[%clk 0:00:02.3]} 70. Ka4 {[%clk
0:00:02.1]} 70... Rd4+ {[%clk 0:00:02.5]} 71. Ka5 {[%clk 0:00:02.6]} 71... Rd5+
{[%clk 0:00:02.9]} 1/2-1/2

[Event "Late-Titled-Tuesday-Blitz-June-18-2024"]
[Site "Chess.com"]
[Date "2024.06.18"]
[Round "1"]
[White "ajedrezsinlimites"]
[Black "PhileKhoob"]
[Result "0-1"]
[WhiteElo "2633"]
[BlackElo "2361"]
[TimeControl "180+1"]
[EndTime "14:08:46 PDT"]
[Termination "PhileKhoob won by checkmate"]

1. e4 {[%clk 0:03:00.9]} 1... c6 {[%clk 0:02:59.8]} 2. d4 {[%clk 0:03:00.5]}
2... d5 {[%clk 0:03:00.4]} 3. exd5 {[%clk 0:03:01.4]} 3... cxd5 {[%clk
0:02:59.1]} 4. Bd3 {[%clk 0:03:02]} 4... Nc6 {[%clk 0:02:58.8]} 5. c3 {[%clk
0:03:02.9]} 5... Nf6 {[%clk 0:02:58.3]} 6. Bf4 {[%clk 0:03:03]} 6... Bg4 {[%clk
0:02:57.4]} 7. Qb3 {[%clk 0:03:03.2]} 7... e5 {[%clk 0:02:48.2]} 8. dxe5 {[%clk
0:03:02.7]} 8... Nh5 {[%clk 0:02:36.8]} 9. Be3 {[%clk 0:03:02.2]} 9... Nxe5
{[%clk 0:02:33.4]} 10. Bb5+ {[%clk 0:03:01.8]} 10... Nc6 {[%clk 0:02:30.8]} 11.
Nd2 {[%clk 0:03:01.3]} 11... Bd6 {[%clk 0:02:24.3]} 12. Ngf3 {[%clk 0:03:00.6]}
12... Nf6 {[%clk 0:02:22.6]} 13. O-O {[%clk 0:02:59.7]} 13... O-O {[%clk
0:02:20.1]} 14. Rfe1 {[%clk 0:02:59.8]} 14... Ne5 {[%clk 0:02:14.2]} 15. Be2
{[%clk 0:02:57.1]} 15... Be6 {[%clk 0:02:00.9]} 16. Qd1 {[%clk 0:02:55.4]} 16...
Ne4 {[%clk 0:01:53.9]} 17. Nxe5 {[%clk 0:02:53.3]} 17... Bxe5 {[%clk 0:01:53.6]}
18. Nf3 {[%clk 0:02:53.5]} 18... Bc7 {[%clk 0:01:51.6]} 19. Bd3 {[%clk
0:02:53.1]} 19... Qd6 {[%clk 0:01:47.9]} 20. h3 {[%clk 0:02:49.8]} 20... a6
{[%clk 0:01:42.1]} 21. Qc2 {[%clk 0:02:47.8]} 21... Bf5 {[%clk 0:01:34.5]} 22.
Rad1 {[%clk 0:02:47]} 22... Qf6 {[%clk 0:01:16.7]} 23. Bd4 {[%clk 0:02:43.1]}
23... Qh6 {[%clk 0:01:10.3]} 24. Be5 {[%clk 0:02:36.8]} 24... Bxe5 {[%clk
0:01:08.7]} 25. Nxe5 {[%clk 0:02:36.6]} 25... Rfe8 {[%clk 0:01:07.9]} 26. Nf3
{[%clk 0:02:32.2]} 26... Qf4 {[%clk 0:00:55.3]} 27. Nd4 {[%clk 0:02:28.6]} 27...
Bg6 {[%clk 0:00:52.3]} 28. Re3 {[%clk 0:02:27.2]} 28... Nf6 {[%clk 0:00:43.8]}
29. Rde1 {[%clk 0:02:24.8]} 29... Rxe3 {[%clk 0:00:38]} 30. Rxe3 {[%clk
0:02:23.8]} 30... Re8 {[%clk 0:00:37.9]} 31. Rxe8+ {[%clk 0:02:11.7]} 31... Nxe8
{[%clk 0:00:38.8]} 32. Bxg6 {[%clk 0:02:09.3]} 32... hxg6 {[%clk 0:00:38.5]} 33.
Qb3 {[%clk 0:02:09.3]} 33... Nf6 {[%clk 0:00:33.9]} 34. Qxb7 {[%clk 0:01:55.2]}
34... Qc1+ {[%clk 0:00:30]} 35. Kh2 {[%clk 0:01:51.2]} 35... Qf4+ {[%clk
0:00:30.4]} 36. Kg1 {[%clk 0:01:50]} 36... Ne4 {[%clk 0:00:09.8]} 37. Qc8+
{[%clk 0:01:35.4]} 37... Kh7 {[%clk 0:00:09.4]} 38. Qg4 {[%clk 0:01:35.9]} 38...
Qxf2+ {[%clk 0:00:05.5]} 39. Kh2 {[%clk 0:01:36]} 39... f5 {[%clk 0:00:03.6]}
40. Qe2 {[%clk 0:01:28.3]} 40... Qf4+ {[%clk 0:00:03.6]} 41. Kg1 {[%clk
0:01:26.7]} 41... Qc1+ {[%clk 0:00:03.5]} 42. Qf1 {[%clk 0:01:23.7]} 42... Qxb2
{[%clk 0:00:02.7]} 43. Nf3 {[%clk 0:01:21.8]} 43... Qxc3 {[%clk 0:00:02.9]} 44.
Qxa6 {[%clk 0:01:21.4]} 44... Qe3+ {[%clk 0:00:03]} 45. Kh2 {[%clk 0:01:21.4]}
45... d4 {[%clk 0:00:03.6]} 46. Qa7 {[%clk 0:01:18.8]} 46... Qf4+ {[%clk
0:00:03.9]} 47. Kg1 {[%clk 0:01:19]} 47... d3 {[%clk 0:00:04.1]} 48. Qd4 {[%clk
0:01:09.7]} 48... Qc1+ {[%clk 0:00:02.9]} 49. Kh2 {[%clk 0:01:10]} 49... d2
{[%clk 0:00:03.4]} 50. Nxd2 {[%clk 0:01:08.9]} 50... Nxd2 {[%clk 0:00:03.7]} 51.
Qh4+ {[%clk 0:01:01.8]} 51... Kg8 {[%clk 0:00:03.4]} 52. Qd8+ {[%clk 0:01:02.5]}
52... Kf7 {[%clk 0:00:04.1]} 53. Qd7+ {[%clk 0:01:02.5]} 53... Kf6 {[%clk
0:00:04.6]} 54. Qd8+ {[%clk 0:01:02.3]} 54... Ke5 {[%clk 0:00:04.4]} 55. Qe7+
{[%clk 0:01:00]} 55... Kd4 {[%clk 0:00:04.8]} 56. Qxg7+ {[%clk 0:01:00.2]} 56...
Kd3 {[%clk 0:00:04.8]} 57. Qxg6 {[%clk 0:00:57.5]} 57... Nf1+ {[%clk 0:00:04]}
58. Kg1 {[%clk 0:00:57.8]} 58... Ne3+ {[%clk 0:00:02.8]} 59. Kf2 {[%clk
0:00:57.4]} 59... Qd2+ {[%clk 0:00:02.6]} 60. Kf3 {[%clk 0:00:57.4]} 60... Qd1+
{[%clk 0:00:02.8]} 61. Kf4 {[%clk 0:00:57.6]} 61... Qf1+ {[%clk 0:00:02.8]} 62.
Ke5 {[%clk 0:00:57.2]} 62... Qa1+ {[%clk 0:00:03.4]} 63. Ke6 {[%clk 0:00:55.3]}
63... Qxa2+ {[%clk 0:00:03.2]} 64. Ke7 {[%clk 0:00:55.9]} 64... Qa7+ {[%clk
0:00:02.9]} 65. Kf8 {[%clk 0:00:55.7]} 65... Qb8+ {[%clk 0:00:03.1]} 66. Kg7
{[%clk 0:00:55.9]} 66... Qc7+ {[%clk 0:00:03.3]} 67. Kh8 {[%clk 0:00:56]} 67...
Ke2 {[%clk 0:00:03.4]} 68. g4 {[%clk 0:00:53.4]} 68... Qc8+ {[%clk 0:00:02]} 69.
Kh7 {[%clk 0:00:53]} 69... Qd7+ {[%clk 0:00:01.8]} 70. Kh6 {[%clk 0:00:52.6]}
70... f4 {[%clk 0:00:02.5]} 71. Qa6+ {[%clk 0:00:50.1]} 71... Kf2 {[%clk
0:00:02.6]} 72. Qa2+ {[%clk 0:00:48.2]} 72... Kg3 {[%clk 0:00:03.2]} 73. g5
{[%clk 0:00:48.2]} 73... f3 {[%clk 0:00:03.4]} 74. g6 {[%clk 0:00:47.7]} 74...
Qxh3+ {[%clk 0:00:03.4]} 75. Kg7 {[%clk 0:00:47.5]} 75... f2 {[%clk 0:00:03.9]}
76. Qe2 {[%clk 0:00:46.2]} 76... Qd7+ {[%clk 0:00:02.8]} 77. Kh6 {[%clk
0:00:45.4]} 77... Qe6 {[%clk 0:00:02.4]} 78. Kh7 {[%clk 0:00:44.8]} 78... f1=Q
{[%clk 0:00:02.4]} 79. Qxf1 {[%clk 0:00:42.5]} 79... Nxf1 {[%clk 0:00:03.3]} 80.
g7 {[%clk 0:00:42.9]} 80... Qf7 {[%clk 0:00:03.8]} 81. Kh8 {[%clk 0:00:43.2]}
81... Qh5+ {[%clk 0:00:03.3]} 82. Kg8 {[%clk 0:00:43.5]} 82... Ne3 {[%clk
0:00:04.2]} 83. Kf8 {[%clk 0:00:44.1]} 83... Qf5+ {[%clk 0:00:04.4]} 84. Ke7
{[%clk 0:00:44.3]} 84... Qe5+ {[%clk 0:00:04.5]} 85. Kf7 {[%clk 0:00:45]} 85...
Qf5+ {[%clk 0:00:05]} 86. Ke7 {[%clk 0:00:45.5]} 86... Qg6 {[%clk 0:00:05.5]}
87. Kf8 {[%clk 0:00:45.7]} 87... Qf6+ {[%clk 0:00:06.1]} 88. Kg8 {[%clk
0:00:45.9]} 88... Nf5 {[%clk 0:00:06.7]} 89. Kh7 {[%clk 0:00:46.8]} 89... Qxg7#
{[%clk 0:00:07.3]} 0-1